bitfinex/quotes_BTCUSD_20251226
["timestamp","ask_amount","ask_price","bid_price","bid_amount"]
[1766717275881,0.01120234,89267.0,89259.0,0.00010752]
[1766717276084,1.50295222,89268.0,89259.0,0.00010752]
[1766717276242,0.01120259,89265.0,89259.0,0.00010752]
[1766717276444,1.49175,89265.0,89249.0,0.03001532]
[1766717276649,1.49175,89265.0,89253.0,0.0112041]
[1766717276865,1.49175,89265.0,89255.0,0.01120385]
[1766717277070,0.01132,89272.0,89265.0,0.000106]
[1766717277244,0.01132,89271.0,89265.0,0.000106]
[1766717277448,0.01132,89271.0,89260.0,0.01120322]
[1766717278220,0.01132,89271.0,89258.0,0.01120347]
[1766717278761,0.01132,89271.0,89260.0,0.01120322]
[1766717278989,0.01132,89271.0,89259.0,0.01120335]
[1766717279166,0.01132,89271.0,89260.0,0.01120322]
[1766717279895,0.01132,89271.0,89261.0,0.0112031]
[1766717280205,0.01120071,89280.0,89261.0,0.0112031]
[1766717280206,1.54775215,89283.0,89264.0,0.0672158]
[1766717280421,0.01120121,89276.0,89260.0,0.39786723]
[1766717280606,0.01792185,89281.0,89252.0,0.1461]
[1766717280607,1.49175,89271.0,89252.0,0.1461]
[1766717280758,0.000549,89260.0,89252.0,0.15742]
[1766717280960,1.46908093,89263.0,89252.0,0.02252423]
[1766717281162,1.46908093,89263.0,89252.0,0.01132]
[1766717281363,1.46853193,89263.0,89254.0,0.01120397]
[1766717281562,0.01132,89267.0,89257.0,0.0112036]
[1766717281767,0.01132,89270.0,89257.0,0.0112036]
[1766717282002,0.02321813,89262.0,89254.0,0.01132]
[1766717282196,0.02321813,89262.0,89250.0,0.01120448]
[1766717282585,0.02321813,89262.0,89251.0,0.01120435]
[1766717282789,0.0112031,89261.0,89249.0,0.01132]
[1766717282996,0.01120347,89258.0,89243.0,0.01120536]
[1766717283158,0.0673355,89261.0,89226.0,0.0448]
[1766717283159,1.49175,89248.0,89226.0,0.0448]
[1766717283363,1.49175,89248.0,89221.0,1.57990144]
[1766717283364,0.05602598,89245.0,89227.0,0.02252736]
[1766717283563,1.49175,89246.0,89231.0,0.01120686]
[1766717283805,1.49175,89246.0,89227.0,0.02252736]
[1766717283806,1.49175,89246.0,89237.0,0.01120611]
[1766717284052,0.42375895,89246.0,89242.0,0.01120548]
[1766717284238,0.01132,89255.0,89244.0,0.01120523]
[1766717284438,1.50307,89255.0,89237.0,0.02252611]
[1766717284643,0.000549,89244.0,89239.0,4.6e-06]
[1766717284943,1.50295397,89254.0,89237.0,0.02257835]
[1766717285147,1.49175,89254.0,89240.0,0.01120573]
[1766717285383,1.49175,89254.0,89239.0,0.01120586]
[1766717285723,1.49175,89254.0,89237.0,0.01137224]
[1766717285724,1.49175,89252.0,89237.0,5.224e-05]
[1766717285906,0.01132,89255.0,89225.0,0.01120762]
[1766717285907,1.49175,89236.0,89225.0,0.01120762]
[1766717286105,1.49175,89236.0,89226.0,0.01132]
[1766717286311,1.49175,89236.0,89227.0,0.01132]
[1766717286584,0.01120561,89241.0,89226.0,2.25e-06]
[1766717286586,1.492246,89227.0,89226.0,2.25e-06]
[1766717286788,1.492246,89227.0,89192.0,0.01121176]
[1766717286789,1.49175,89207.0,89192.0,0.01121176]
[1766717286997,0.01132,89206.0,89193.0,0.05605763]
[1766717287195,0.011209,89214.0,89192.0,8.84e-05]
[1766717287196,0.011209,89214.0,89199.0,0.01121088]
[1766717287397,0.01132,89210.0,89198.0,0.01121101]
[1766717287607,0.01132,89210.0,89202.0,0.01121051]
[1766717287808,0.01132,89213.0,89202.0,0.01121051]
[1766717287999,0.01132,89213.0,89201.0,0.01121063]
[1766717288176,0.01132,89213.0,89203.0,0.01121038]
[1766717288364,0.02321813,89212.0,89202.0,0.01121051]
[1766717288560,0.02321813,89212.0,89201.0,0.01121063]
[1766717288787,0.02321813,89212.0,89200.0,0.39786723]
[1766717288788,0.03442738,89212.0,89200.0,0.39786723]
[1766717288987,0.02321813,89212.0,89190.0,0.39786723]
[1766717289334,0.09047422,89212.0,89194.0,0.01121151]
[1766717289625,0.09047422,89212.0,89192.0,1.41188661]
[1766717289626,0.01132,89218.0,89202.0,0.01121051]
[1766717289800,0.00677252,89218.0,89210.0,0.39786723]
[1766717290123,0.00484596,89218.0,89210.0,0.39786723]
[1766717290266,0.01132,89221.0,89210.0,0.0112095]
[1766717290729,0.01132,89221.0,89209.0,0.01120963]
[1766717290898,0.01132,89221.0,89210.0,0.0112095]
[1766717291099,0.01132,89221.0,89209.0,0.01120963]
[1766717291302,0.01132,89221.0,89210.0,0.0112095]
[1766717291516,0.01132,89221.0,89208.0,0.40907698]
[1766717291871,0.02252812,89221.0,89208.0,0.39786723]
[1766717292088,0.01132,89221.0,89208.0,0.40907698]
[1766717292485,0.01132,89221.0,89209.0,0.01120963]
[1766717292744,0.01132,89221.0,89205.0,0.05605005]
[1766717292745,0.000549,89209.0,89201.0,0.01121063]
[1766717292950,0.000549,89209.0,89202.0,0.01121051]
[1766717293164,0.01120925,89212.0,89196.0,0.01121126]
[1766717293387,0.22416551,89220.0,89170.0,0.00069507]
[1766717293388,0.00055,89203.0,89188.0,0.01121227]
[1766717293583,0.00055,89203.0,89190.0,0.47645891]
[1766717293722,0.01132,89207.0,89193.0,0.01121164]
[1766717293923,0.01132,89207.0,89195.0,0.01121139]
[1766717294322,0.0112085,89218.0,89197.0,0.39786723]
[1766717294552,0.01132,89217.0,89205.0,0.01121013]
[1766717294910,0.01132,89217.0,89203.0,0.05605168]
[1766717294911,0.01132,89217.0,89203.0,0.01121038]
[1766717295229,0.01132,89217.0,89207.0,0.39786723]
[1766717295345,0.01132,89217.0,89205.0,0.01121013]
[1766717295546,0.01132,89217.0,89205.0,0.06726068]
[1766717295750,0.01132,89216.0,89206.0,0.01121]
[1766717295963,0.01132,89216.0,89202.0,0.01121051]
[1766717296163,0.01132,89216.0,89203.0,0.01121038]
[1766717296872,0.01132,89216.0,89204.0,0.01121025]
[1766717297084,0.01132,89216.0,89206.0,0.01121]
[1766717297286,0.01132,89216.0,89201.0,0.05605255]
[1766717297287,0.000549,89206.0,89199.0,0.01121088]
[1766717297487,0.00055,89199.0,89190.0,0.01132]
[1766717297684,1.46362,89205.0,89172.0,1.41480241]
[1766717297685,1.46362,89205.0,89192.0,0.01121176]
[1766717298008,0.01121063,89201.0,89186.0,0.01132]
[1766717298211,0.01121063,89201.0,89176.0,0.22427397]
[1766717298212,0.01121176,89192.0,89175.0,0.0116139]
[1766717298411,0.01121176,89192.0,89175.0,0.0004]
[1766717298412,0.01121214,89189.0,89175.0,0.0004]
[1766717298729,0.01121239,89187.0,89175.0,0.0004]
[1766717299290,0.01132,89193.0,89177.0,0.01121365]
[1766717299469,0.01132,89188.0,89177.0,0.01121365]
[1766717299657,0.01132,89188.0,89180.0,0.01121327]
[1766717299872,0.01132,89188.0,89178.0,0.01121352]
[1766717300080,0.01132,89188.0,89177.0,0.00035828]
[1766717300220,0.01132,89188.0,89177.0,2.8e-07]
[1766717300420,0.01121264,89185.0,89177.0,2.8e-07]
[1766717300624,0.02253227,89188.0,89177.0,2.8e-07]
[1766717300869,0.01121239,89187.0,89177.0,2.8e-07]
[1766717301023,0.01121252,89186.0,89177.0,2.8e-07]
[1766717301224,0.01121239,89187.0,89177.0,2.8e-07]
[1766717301424,0.06727795,89183.0,89177.0,2.8e-07]
[1766717301816,0.06727795,89183.0,89165.0,0.01121516]
[1766717301817,0.0112144,89171.0,89152.0,1.39654]
[1766717302011,0.02289268,89171.0,89155.0,0.01121642]
[1766717302182,1.46397828,89171.0,89156.0,0.01121629]
[1766717302390,1.47519268,89171.0,89155.0,0.01121642]
[1766717302885,1.47519268,89171.0,89163.0,0.01121541]
[1766717302886,1.34041494,89171.0,89163.0,0.01121541]
[1766717303087,1.22817342,89171.0,89154.0,0.01132]
[1766717303263,0.01132,89171.0,89165.0,0.01121516]
[1766717303482,0.01132,89174.0,89165.0,0.05607576]
[1766717303648,0.01132,89174.0,89165.0,0.00010759]
[1766717304271,0.05612138,89170.0,89165.0,0.00010759]
[1766717304478,0.05612138,89170.0,89159.0,0.01121591]
[1766717304680,0.05612138,89170.0,89159.0,0.01157419]
[1766717304884,1.50842138,89170.0,89154.0,0.02253654]
[1766717305100,1.4523,89169.0,89154.0,0.02253654]
[1766717305283,1.4523,89169.0,89154.0,0.05608215]
[1766717305482,1.4523,89169.0,89154.0,0.06729869]
[1766717305681,1.46351465,89169.0,89153.0,0.02253667]
[1766717305910,1.4523,89169.0,89154.0,0.01121654]
[1766717306111,1.4523,89169.0,89157.0,0.01121616]
[1766717306359,1.4523,89169.0,89153.0,0.02253667]
[1766717306360,0.05647972,89170.0,89130.0,0.0004]
[1766717306361,0.00035834,89170.0,89130.0,0.0004]
[1766717306666,0.00035834,89170.0,89115.0,0.0004]
[1766717306667,1.4523,89127.0,89115.0,0.0004]
[1766717306856,0.01132,89126.0,89115.0,0.01162145]
[1766717307058,0.01132,89126.0,89116.0,0.01122132]
[1766717307196,0.06731376,89135.0,89116.0,0.01122132]
[1766717307197,0.05612138,89124.0,89116.0,0.01122132]
[1766717307401,0.01132,89123.0,89116.0,0.01122132]
[1766717307841,0.01132,89123.0,89119.0,0.01122095]
[1766717308188,0.000549,89119.0,89116.0,5.221e-05]
[1766717308707,0.01132,89123.0,89116.0,5.221e-05]
[1766717308908,0.01132,89123.0,89116.0,2.1e-07]
[1766717308909,0.01122057,89122.0,89116.0,2.1e-07]
[1766717309110,0.01132,89123.0,89103.0,1.3517]
[1766717309334,0.01122107,89118.0,89103.0,0.00010767]
[1766717309556,0.01132,89123.0,89103.0,0.00010767]
[1766717309730,0.01122145,89115.0,89103.0,0.00010767]
[1766717309929,0.01132,89114.0,89103.0,0.01133063]
[1766717310363,0.01132,89114.0,89103.0,0.00010767]
[1766717310716,0.01132,89114.0,89096.0,0.0002]
[1766717310717,0.01122271,89105.0,89096.0,0.0002]
[1766717310925,0.05611546,89102.0,89096.0,0.00021576]
[1766717311129,0.02254284,89104.0,89096.0,0.00021576]
[1766717311337,0.01122195,89111.0,89096.0,0.00021576]
[1766717311538,0.04484,89105.0,89103.0,0.00203882]
[1766717311751,0.000551,89103.0,89096.0,0.00021576]
[1766717311921,0.02254309,89102.0,89096.0,0.00021576]
[1766717312127,0.01122321,89101.0,89096.0,0.00021576]
[1766717312361,0.02254309,89102.0,89096.0,0.00021576]
[1766717312362,0.11395369,89099.0,89096.0,0.00021576]
[1766717312568,0.01132,89102.0,89096.0,0.00021576]
[1766717312718,0.02254309,89102.0,89099.0,0.000548]
[1766717312918,0.01122321,89101.0,89096.0,0.00021576]
[1766717313122,0.01122347,89099.0,89096.0,0.00021576]
[1766717313333,0.01122347,89099.0,89087.0,0.0002]
[1766717313334,0.01122397,89095.0,89087.0,0.0002]
[1766717313507,0.05738479,89093.0,89091.0,0.00010774]
[1766717313710,4.79e-06,89093.0,89091.0,0.00010774]
[1766717314098,0.0112246,89090.0,89087.0,0.0002]
[1766717314535,4.79e-06,89093.0,89068.0,0.06746689]
[1766717314536,0.0112251,89086.0,89068.0,0.06746689]
[1766717314739,0.01122536,89084.0,89070.0,0.00010774]
[1766717314976,0.01132,89085.0,89070.0,0.00010774]
[1766717315191,0.01132,89085.0,89063.0,0.011228]
[1766717315192,0.01132,89085.0,89049.0,1.3517]
[1766717315193,0.01122788,89064.0,89049.0,1.3517]
[1766717315360,0.01132,89063.0,89049.0,1.3517]
[1766717315587,0.01122599,89079.0,89063.0,0.000548]
[1766717315779,1.38793,89088.0,89063.0,0.00035924]
[1766717315780,0.02254611,89078.0,89063.0,0.00035924]
[1766717315977,0.0561364,89069.0,89063.0,0.00035924]
[1766717316158,0.0561364,89069.0,89060.0,1.3517]
[1766717316159,0.011228,89063.0,89049.0,1.3517]
[1766717316346,0.011228,89063.0,89050.0,0.39786723]
[1766717316542,0.05613134,89077.0,89056.0,0.01122888]
[1766717316747,0.01122687,89072.0,89060.0,0.39786723]
[1766717316987,0.01122699,89071.0,89060.0,0.39786723]
[1766717317193,0.01122725,89069.0,89053.0,1.3517]
[1766717317365,0.0786847,89068.0,89059.0,0.39786723]
[1766717317546,0.0112275,89067.0,89053.0,1.3517]
[1766717317763,0.01132,89068.0,89053.0,1.3517]
[1766717318084,0.01132,89067.0,89056.0,0.01122888]
[1766717318283,0.01132,89067.0,89053.0,1.3517]
[1766717318284,0.01122775,89065.0,89053.0,1.3517]
[1766717318622,0.000549,89053.0,89049.0,0.00010734]
[1766717318765,0.01122939,89052.0,89049.0,0.00010734]
[1766717318970,0.01122926,89053.0,89049.0,3.4e-07]
[1766717319172,0.05613814,89066.0,89049.0,3.4e-07]
[1766717319364,0.01792185,89109.0,89049.0,3.4e-07]
[1766717319365,0.01122825,89061.0,89049.0,3.4e-07]
[1766717319567,0.01122813,89062.0,89049.0,3.4e-07]
[1766717319769,0.06736973,89061.0,89049.0,3.4e-07]
[1766717319979,0.01122813,89062.0,89049.0,3.4e-07]
[1766717320323,0.01122939,89052.0,89049.0,3.4e-07]
[1766717320641,0.01052576,89052.0,89049.0,3.4e-07]
[1766717320781,0.06737501,89054.0,89049.0,3.4e-07]
[1766717321141,5.26e-06,89054.0,89049.0,3.4e-07]
[1766717321342,0.01122926,89053.0,89049.0,3.4e-07]
[1766717321545,0.01122939,89052.0,89049.0,3.4e-07]
[1766717321852,0.00070842,89051.0,89049.0,3.4e-07]
[1766717322055,0.00070842,89051.0,89047.0,0.0004]
[1766717322056,0.00070842,89051.0,89047.0,3.4e-07]
[1766717322266,0.01132,89056.0,89047.0,3.4e-07]
[1766717322267,0.01122737,89068.0,89051.0,0.000107]
[1766717322464,0.0562,89067.0,89052.0,1.37646]
[1766717322640,0.01122699,89071.0,89053.0,1.43260633]
[1766717322840,0.01122813,89062.0,89053.0,1.37646]
[1766717323040,0.01132,89061.0,89057.0,0.01122876]
[1766717323299,0.00035968,89071.0,89061.0,0.000107]
[1766717323502,0.01132,89070.0,89061.0,0.000107]
[1766717323653,0.01132,89070.0,89060.0,0.00131073]
[1766717323654,0.00035968,89071.0,89066.0,0.05613805]
[1766717323857,0.00035968,89071.0,89063.0,0.011228]
[1766717323858,0.01167968,89071.0,89065.0,0.01122775]
[1766717324102,0.01167968,89071.0,89064.0,0.0561394]
[1766717324103,0.00035968,89071.0,89064.0,0.01122788]
[1766717324307,0.00567968,89072.0,89065.0,0.01122775]
[1766717324628,1.40928,89084.0,89071.0,0.000107]
[1766717324783,1.40928,89084.0,89067.0,0.06736461]
[1766717324784,0.01132,89083.0,89067.0,0.06736461]
[1766717324959,0.01132,89083.0,89062.0,0.01132]
[1766717324960,0.01122611,89078.0,89062.0,0.01132]
[1766717325166,0.01122649,89075.0,89062.0,0.01132]
[1766717325481,0.01122662,89074.0,89062.0,0.01132]
[1766717325683,0.01132,89075.0,89055.0,0.01122901]
[1766717325684,0.000442,89062.0,89055.0,0.01122901]
[1766717325885,0.01122674,89073.0,89057.0,0.01122876]
[1766717326094,0.01132,89075.0,89060.0,0.01122838]
[1766717326290,0.01132,89075.0,89057.0,0.01122876]
[1766717326291,0.01122674,89073.0,89057.0,0.01122876]
[1766717326496,0.01122788,89064.0,89049.0,0.01122977]
[1766717326854,0.01122788,89064.0,89045.0,3.3e-07]
[1766717326855,0.00055,89051.0,89045.0,3.3e-07]
[1766717327024,1.47638,89069.0,89045.0,3.3e-07]
[1766717327025,0.01132,89072.0,89058.0,0.01122863]
[1766717327224,0.02254687,89072.0,89054.0,0.05614511]
[1766717327522,0.01132,89071.0,89064.0,0.0561394]
[1766717327732,0.06735424,89082.0,89071.0,0.000549]
[1766717327733,0.01132,89072.0,89071.0,0.000549]
[1766717328166,0.01077,89072.0,89067.0,0.0112275]
[1766717328393,0.01077,89072.0,89064.0,0.01122788]
[1766717328872,0.01077,89072.0,89063.0,0.011228]
[1766717328873,0.01077,89072.0,89069.0,0.00103654]
[1766717329090,0.00055,89069.0,89055.0,0.01122901]
[1766717329311,0.00055,89069.0,89040.0,0.58639822]
[1766717329312,0.01077,89072.0,89060.0,0.01122838]
[1766717329603,0.01077,89072.0,89058.0,0.01122863]
[1766717329811,0.01077,89072.0,89054.0,0.06746551]
[1766717329812,0.01122699,89071.0,89054.0,0.01132]
[1766717330032,0.01122725,89069.0,89054.0,0.01132]
[1766717330154,0.01122737,89068.0,89054.0,0.01132]
[1766717330374,0.01122737,89068.0,89052.0,1.45108939]
[1766717330375,0.011228,89063.0,89045.0,0.0112306]
[1766717330588,0.00055,89054.0,89047.0,0.01123002]
[1766717330791,0.011228,89063.0,89046.0,0.05615075]
[1766717330792,0.01122825,89061.0,89046.0,0.05615075]
[1766717330998,0.06736858,89063.0,89046.0,0.01123015]
[1766717331239,0.01122838,89060.0,89045.0,0.01132033]
[1766717331434,0.01122876,89057.0,89045.0,0.01132033]
[1766717331906,0.05614304,89059.0,89045.0,0.01132033]
[1766717332040,0.01122876,89057.0,89045.0,0.01132033]
[1766717332374,0.01122876,89057.0,89031.0,0.01123204]
[1766717332375,0.01123052,89043.0,89034.0,0.01132]
[1766717332591,0.01123128,89037.0,89034.0,0.00035968]
[1766717332761,0.01123115,89038.0,89034.0,0.00035968]
[1766717332959,0.01123128,89037.0,89028.0,0.01132]
[1766717333163,0.01123128,89037.0,89028.0,0.00010778]
[1766717333400,0.01123027,89045.0,89037.0,0.000549]
[1766717333573,0.01132,89047.0,89030.0,0.01123216]
[1766717333775,0.02255002,89047.0,89029.0,0.01123229]
[1766717333978,0.01123027,89045.0,89028.0,1.51868179]
[1766717334177,0.01123078,89041.0,89028.0,1.45128778]
[1766717334379,0.01123065,89042.0,89028.0,1.45128778]
[1766717334603,0.01122851,89059.0,89042.0,1.440409]
[1766717334786,0.06737054,89060.0,89043.0,0.01132]
[1766717334988,0.01122888,89056.0,89043.0,0.01132]
[1766717335182,0.01122851,89059.0,89043.0,0.01132]
[1766717335414,0.01122876,89057.0,89043.0,0.01132]
[1766717335644,0.33675702,89089.0,89043.0,0.01132]
[1766717335872,0.01122788,89064.0,89057.0,0.000549]
[1766717336070,0.011228,89063.0,89057.0,0.000549]
[1766717336208,0.011228,89063.0,89052.0,0.01132]
[1766717336424,0.01122775,89065.0,89052.0,0.01132]
[1766717336617,0.0112275,89067.0,89052.0,0.01132]
[1766717337027,0.01122762,89066.0,89052.0,0.01132]
[1766717337240,0.01122712,89070.0,89052.0,0.01132]
[1766717337241,0.01122712,89070.0,89055.0,0.01122901]
[1766717337486,0.01122725,89069.0,89066.0,0.000549]
[1766717337696,0.01122725,89069.0,89063.0,0.01132]
[1766717337898,0.01122712,89070.0,89063.0,0.01132]
[1766717338067,0.26792765,89183.0,89063.0,0.01132]
[1766717338068,0.01122674,89073.0,89063.0,0.01132]
[1766717338263,0.01122687,89072.0,89063.0,0.01132]
[1766717338664,0.01122737,89068.0,89063.0,0.01132]
[1766717338875,0.01122712,89070.0,89063.0,0.010771]
[1766717339502,0.01122699,89071.0,89063.0,0.010771]
[1766717339706,0.0112275,89067.0,89051.0,0.01122952]
[1766717339930,0.01122725,89069.0,89053.0,0.06746926]
[1766717340076,0.0112275,89067.0,89053.0,0.05624]
[1766717340262,0.01122762,89066.0,89053.0,0.05624]
[1766717340463,0.06736409,89069.0,89053.0,0.05624]
[1766717340702,0.01122699,89071.0,89059.0,0.58639822]
[1766717340905,0.06736254,89071.0,89059.0,0.58639822]
[1766717341217,0.06736254,89071.0,89054.0,0.01122914]
[1766717341218,0.01122699,89071.0,89060.0,0.01132]
[1766717341440,0.01122699,89071.0,89050.0,0.58639822]
[1766717341441,0.00055,89059.0,89041.0,1.43986]
[1766717341636,0.00055,89059.0,89043.0,1.43986]
[1766717341863,0.01122775,89065.0,89040.0,0.58639822]
[1766717341864,0.00035946,89073.0,89062.0,1.43986]
[1766717342059,0.01122662,89074.0,89063.0,0.01132]
[1766717342280,0.01122561,89082.0,89074.0,0.001099]
[1766717342501,0.01122548,89083.0,89072.0,0.01132]
[1766717342712,0.01122397,89095.0,89079.0,0.01122599]
[1766717342926,0.01122271,89105.0,89088.0,0.01122485]
[1766717343116,0.01122208,89110.0,89093.0,0.01122422]
[1766717343323,0.01122233,89108.0,89092.0,0.01122435]
[1766717343526,0.06732817,89116.0,89098.0,0.01122359]
[1766717343731,0.06732817,89116.0,89097.0,1.43986]
[1766717343732,1.47638,89128.0,89104.0,0.01122284]
[1766717343733,0.01122019,89125.0,89104.0,0.01122284]
[1766717343939,0.22441408,89122.0,89099.0,0.01132]
[1766717344134,0.0112212,89117.0,89102.0,0.01122309]
[1766717344333,0.0112212,89117.0,89100.0,0.06743613]
[1766717344334,0.00010786,89117.0,89107.0,0.01122246]
[1766717344535,0.00010786,89117.0,89105.0,0.01122271]
[1766717344536,0.00010786,89117.0,89109.0,0.01122221]
[1766717344821,0.04492,89152.0,89118.0,0.01122107]
[1766717345042,0.01121868,89137.0,89119.0,0.07864556]
[1766717345265,0.01132,89151.0,89119.0,0.07864556]
[1766717345266,0.01121855,89138.0,89123.0,0.01122044]
[1766717345486,0.01121855,89138.0,89122.0,0.01122057]
[1766717345689,0.01121855,89138.0,89120.0,0.59761904]
[1766717345690,0.0112178,89144.0,89127.0,0.01121994]
[1766717345911,0.01121818,89141.0,89128.0,0.01132]
[1766717346114,0.01121805,89142.0,89128.0,0.01132]
[1766717346340,0.02253692,89151.0,89130.0,0.01121956]
[1766717346562,0.01121793,89143.0,89131.0,0.01132]
[1766717346763,0.0112178,89144.0,89131.0,0.01132]
[1766717346983,0.01121767,89145.0,89131.0,0.01132]
[1766717347247,0.01121717,89149.0,89134.0,0.01121906]
[1766717347436,0.01121805,89142.0,89131.0,0.01132]
[1766717347650,0.06730533,89146.0,89131.0,0.01132]
[1766717347846,0.0112173,89148.0,89134.0,0.01121906]
[1766717348046,0.06729949,89154.0,89137.0,0.01121868]
[1766717348283,0.06729949,89154.0,89130.0,0.81078747]
[1766717348284,0.000549,89137.0,89127.0,1.43986]
[1766717348484,0.000549,89137.0,89117.0,0.0112212]
[1766717348485,0.01121956,89130.0,89112.0,1.43986]
[1766717348720,0.01121981,89128.0,89112.0,1.43986]
[1766717348929,0.05609659,89132.0,89113.0,0.01132]
[1766717349126,0.22435417,89145.0,89128.0,0.00055]
[1766717349127,0.01121893,89135.0,89128.0,0.00055]
[1766717349311,0.01121944,89131.0,89124.0,0.01132]
[1766717349536,0.05609846,89129.0,89124.0,0.01132]
[1766717349654,0.06731968,89127.0,89124.0,0.01132]
[1766717349889,0.01121994,89127.0,89124.0,0.01132]
[1766717350105,0.01121994,89127.0,89124.0,0.010771]
[1766717350106,0.06731967,89127.0,89124.0,0.010771]
[1766717350551,0.01121994,89127.0,89124.0,0.010771]
[1766717350882,0.01121994,89127.0,89105.0,0.05611356]
[1766717350883,0.01122069,89121.0,89105.0,0.01122271]
[1766717351089,4.4e-07,89123.0,89097.0,0.04488]
[1766717351290,0.05610894,89113.0,89100.0,0.58639822]
[1766717351504,0.05610331,89123.0,89096.0,1.43986]
[1766717351707,1e-08,89099.0,89090.0,0.58639822]
[1766717351929,0.05611631,89101.0,89085.0,1.43986]
[1766717352155,0.01122321,89101.0,89091.0,0.01132]
[1766717352405,0.05611561,89102.0,89091.0,0.01132]
[1766717352628,0.01122296,89103.0,89090.0,0.00010786]
[1766717352629,0.22445945,89103.0,89090.0,0.58650608]
[1766717352831,0.05611175,89108.0,89103.0,0.000549]
[1766717353003,0.01122258,89106.0,89092.0,1.43986]
[1766717353222,0.01122271,89105.0,89092.0,1.43986]
[1766717353633,0.01122258,89106.0,89092.0,1.43986]
[1766717353634,0.01122284,89104.0,89092.0,1.43986]
[1766717353827,0.01122258,89106.0,89092.0,1.43986]
[1766717354059,0.01122233,89108.0,89092.0,1.43986]
[1766717354255,0.01122158,89114.0,89106.0,0.001099]
[1766717354459,0.01122132,89116.0,89106.0,0.012419]
[1766717354689,0.01122183,89112.0,89106.0,0.01132]
[1766717354836,0.01122183,89112.0,89106.0,0.000549]
[1766717354837,0.01122208,89110.0,89106.0,0.000549]
[1766717355105,0.01122221,89109.0,89106.0,0.000549]
[1766717355463,0.01122246,89107.0,89090.0,0.59773068]
[1766717355666,0.01122422,89093.0,89090.0,0.00010786]
[1766717355875,0.01122422,89093.0,89091.0,0.01132]
[1766717356071,0.01122422,89093.0,89090.0,0.00010786]
[1766717356275,0.06734748,89091.0,89079.0,1.47498]
[1766717356473,0.00010768,89091.0,89080.0,0.01132]
[1766717356763,6.8e-07,89091.0,89081.0,1.47498]
[1766717356964,6.8e-07,89091.0,89088.0,0.01122485]
[1766717357174,6.8e-07,89091.0,89082.0,1.47498]
[1766717357175,6.8e-07,89091.0,89089.0,0.01132]
[1766717357369,6.8e-07,89091.0,89082.0,1.47498]
[1766717357581,0.01122271,89105.0,89088.0,0.01122485]
[1766717357827,0.01122233,89108.0,89090.0,0.58639822]
[1766717357963,0.01122233,89108.0,89091.0,1.4863]
[1766717357964,0.01122246,89107.0,89091.0,1.4863]
[1766717358178,0.01122246,89107.0,89091.0,1.49752447]
[1766717358384,0.01122284,89104.0,89092.0,1.47498]
[1766717358584,0.05611231,89107.0,89092.0,1.47498]
[1766717358784,0.01122271,89105.0,89092.0,1.47498]
[1766717358999,0.01792185,89102.0,89079.0,1.47498]
[1766717359210,0.01122359,89098.0,89082.0,0.01122561]
[1766717359409,0.01122397,89095.0,89081.0,0.01122573]
[1766717359614,0.01122246,89107.0,89095.0,0.001099]
[1766717359815,1.3853,89119.0,89095.0,0.01132]
[1766717359816,0.02254233,89108.0,89095.0,0.01132]
[1766717360052,0.01122233,89108.0,89095.0,0.01132]
[1766717360249,3.57e-06,89105.0,89095.0,0.01132]
[1766717360456,0.01122183,89112.0,89095.0,0.01132]
[1766717360652,0.06733491,89107.0,89095.0,0.01132]
[1766717360956,0.01132,89114.0,89097.0,0.01122372]
[1766717361155,0.01132,89114.0,89095.0,1.4863]
[1766717361156,0.01122233,89108.0,89095.0,1.4863]
[1766717361382,0.01122258,89106.0,89095.0,1.4863]
[1766717361593,0.06733348,89109.0,89095.0,1.4863]
[1766717361594,0.01122221,89109.0,89095.0,1.49752397]
[1766717361832,0.01122208,89110.0,89095.0,1.49752397]
[1766717362030,0.01122208,89110.0,89095.0,1.4863]
[1766717362247,0.01122195,89111.0,89095.0,1.49752397]
[1766717362464,0.01122195,89111.0,89097.0,0.01122372]
[1766717362666,0.01122221,89109.0,89095.0,1.4863]
[1766717362806,0.01122246,89107.0,89090.0,0.0112246]
[1766717363010,0.01122271,89105.0,89096.0,0.01132]
[1766717363274,0.01122145,89115.0,89098.0,0.06734157]
[1766717363496,0.0112217,89113.0,89099.0,0.01132]
[1766717363679,0.01122158,89114.0,89100.0,0.01132]
[1766717364009,0.01122158,89114.0,89085.0,0.22450453]
[1766717364010,0.01122258,89106.0,89101.0,0.01132]
[1766717364215,0.01122435,89092.0,89083.0,0.04488]
[1766717364415,0.000549,89100.0,89085.0,0.06735083]
[1766717364794,0.000549,89100.0,89084.0,0.01122536]
[1766717364795,0.01122359,89098.0,89086.0,0.01132]
[1766717364933,0.01122359,89098.0,89087.0,0.01132]
[1766717365161,0.06733732,89104.0,89087.0,0.01132]
[1766717365369,0.01122309,89102.0,89087.0,0.01132]
[1766717365613,0.0673387,89102.0,89088.0,0.01132]
[1766717365806,0.01122258,89106.0,89091.0,0.01122447]
[1766717366115,0.01122309,89102.0,89088.0,0.02254485]
[1766717366318,0.01122384,89096.0,89088.0,0.01132]
[1766717366532,0.01122397,89095.0,89089.0,0.01132]
[1766717366663,0.000549,89088.0,89074.0,0.01122662]
[1766717366862,0.01122447,89091.0,89080.0,0.01132]
[1766717367084,0.0112241,89094.0,89080.0,0.01132]
[1766717367289,0.0112241,89094.0,89074.0,0.01122662]
[1766717367290,0.0112246,89090.0,89073.0,0.01122674]
[1766717367464,0.0112246,89090.0,89020.0,0.2]
[1766717367465,0.0112251,89086.0,89072.0,0.01122687]
[1766717367670,0.01122536,89084.0,89079.0,0.01142768]
[1766717367896,0.01122536,89084.0,89079.0,0.01132068]
[1766717368097,0.01122523,89085.0,89079.0,0.01132068]
[1766717368299,0.01122548,89083.0,89079.0,0.01132068]
[1766717368544,1.3853,89095.0,89079.0,6.8e-07]
[1766717368756,0.01122397,89095.0,89083.0,0.000657]
[1766717368955,0.01122422,89093.0,89083.0,0.011977]
[1766717369173,0.01122271,89105.0,89087.0,0.01122498]
[1766717369384,0.01122246,89107.0,89092.0,0.01122435]
[1766717369583,0.01122271,89105.0,89092.0,0.01132]
[1766717369794,0.01122258,89106.0,89092.0,0.01132]
[1766717369795,0.01132,89109.0,89092.0,0.02254435]
[1766717369944,0.01132,89109.0,89096.0,0.05611912]
[1766717370354,0.0112217,89113.0,89099.0,0.01122347]
[1766717370555,0.01122195,89111.0,89097.0,0.01122372]
[1766717370762,0.01122183,89112.0,89096.0,0.06734307]
[1766717370966,0.01122195,89111.0,89097.0,0.01122372]
[1766717371178,0.01122183,89112.0,89098.0,0.01122359]
[1766717371371,0.01132,89115.0,89101.0,0.01122321]
[1766717371567,0.01122132,89116.0,89102.0,0.01132]
[1766717371568,0.01122158,89114.0,89102.0,0.01132]
[1766717371809,0.01122158,89114.0,89102.0,0.01098074]